Workbook

Sheet ORÇAMENTO
A1: <---- NUMERAR SERVIÇOS PARA CPU | C1: Ministério do Desenvolvimento Regional
C2: Companhia de Desenvolvimento dos Vales do São Francisco e do Parnaíba
C3: 1ª Superintendência Regional
B5: OBRA: | C5: PAVIMENTAÇÃO EM BLOQUETE - DISTRITO DE SÃO PEDRO DO PASSA TRÊS - BURITIS/MG
B6: DATA: | C6: JULHO/2023 | G6: BDI Serviços: | I6: ='BDI SERV'!D30/100 -> 0.2127
B7: PRAZO DE EXECUÇÃO: 90 DIAS
B8: ITEM | C8: DISCRIMINAÇÃO | D8: REFER. | E8: UNID. | F8: QUANT. | G8: P. UNITÁRIO | H8: P.UNIT.C/ BDI | I8: P. TOTAL
A9: A | B9: 1 | C9: SERVIÇOS PRELIMINARES | I9: =SUM(I10:I14) -> 42330.54
A10: 1 | B10: 1.1 | C10: MOBILIZAÇÃO E DESMOBILIZAÇÃO | D10: CPU.1 | E10: GL | F10: 1 | G10: =VLOOKUP(A10,CPU!$A$1:$N$4519,9) -> 3757.04 | H10: =VLOOKUP(A10,CPU!$A$1:$N$4519,10) -> 4556.162408 | I10: =ROUND(F10*H10,2) -> 4556.16
A11: 2 | B11: 1.2 | C11: ADMINISTRAÇÃO LOCAL | D11: CPU.2 | E11: GL | F11: 1 | G11: =VLOOKUP(A11,CPU!$A$1:$N$4519,9) -> 27176.41764 | H11: =VLOOKUP(A11,CPU!$A$1:$N$4519,10) -> 32956.84167 | I11: =ROUND(F11*H11,2) -> 32956.84
A12: 3 | B12: 1.3 | C12: CANTEIRO DE OBRAS | D12: CPU.3 | E12: GL | F12: 1 | G12: =VLOOKUP(A12,CPU!$A$1:$N$4519,9) -> 3075 | H12: =VLOOKUP(A12,CPU!$A$1:$N$4519,10) -> 3729.0525 | I12: =ROUND(F12*H12,2) -> 3729.05
A13: 4 | B13: 1.4 | C13: PLACA DE OBRA EM CHAPA DE AÇO GALVANIZADO | D13: 103689 | E13: M2 | F13: 2 | G13: =VLOOKUP(A13,CPU!$A$1:$N$4519,9) -> 308.09 | H13: =VLOOKUP(A13,CPU!$A$1:$N$4519,10) -> 373.620743 | I13: =ROUND(F13*H13,2) -> 747.24
A14: 5 | B14: 1.5 | C14: LOCAÇÃO DE PAVIMENTAÇÃO | D14: 99064 | E14: M | F14: 420 | G14: =VLOOKUP(A14,CPU!$A$1:$N$4519,9) -> 0.67 | H14: =VLOOKUP(A14,CPU!$A$1:$N$4519,10) -> 0.812509 | I14: =ROUND(F14*H14,2) -> 341.25
A15: B | B15: 2 | C15: PAVIMENTAÇÃO | I15: =SUM(I16:I20) -> 260567.64
A16: 6 | B16: 2.1 | C16: ESCAVAÇÃO HORIZONTAL EM SOLO DE 1A CATEGORIA COM TRATOR DE ESTEIRAS | D16: 101116 | E16: M3 | F16: 970 | G16: =VLOOKUP(A16,CPU!$A$1:$N$4519,9) -> 1.89 | H16: =VLOOKUP(A16,CPU!$A$1:$N$4519,10) -> 2.292003 | I16: =ROUND(F16*H16,2) -> 2223.24
A17: 7 | B17: 2.2 | C17: CARGA, MANOBRA E DESCARGA DE SOLOS E MATERIAIS GRANULARES EM CAMINHÃO BASCULANTE - CARGA COM PÁ CARREGADEIRA E DESCARGA LIVRE | D17: 100976 | E17: M3 | F17: 970 | G17: =VLOOKUP(A17,CPU!$A$1:$N$4519,9) -> 8.11 | H17: =VLOOKUP(A17,CPU!$A$1:$N$4519,10) -> 9.834997 | I17: =ROUND(F17*H17,2) -> 9539.95
A18: 8 | B18: 2.3 | C18: REGULARIZAÇÃO E COMPACTAÇÃO DE SUBLEITO | D18: 100576 | E18: M2 | F18: 2800 | G18: =VLOOKUP(A18,CPU!$A$1:$N$4519,9) -> 2.37 | H18: =VLOOKUP(A18,CPU!$A$1:$N$4519,10) -> 2.874099 | I18: =ROUND(F18*H18,2) -> 8047.48
A19: 8.5 | B19: 2.4 | C19: EXECUÇÃO E COMPACTAÇÃO DE BASE E OU SUB BASE PARA PAVIMENTAÇÃO DE SOLO DE COMPORTAMENTO LATERÍTICO - EXCLUSIVE SOLO, ESCAVAÇÃO, CARGA E TRANSPORTE | D19: 96388 | E19: M3 | F19: 420 | G19: =VLOOKUP(A19,CPU!$A$1:$N$4519,9) -> 11.25 | H19: =VLOOKUP(A19,CPU!$A$1:$N$4519,10) -> 13.642875 | I19: =ROUND(F19*H19,2) -> 5730.01
A20: 9 | B20: 2.5 | C20: EXECUÇÃO DE PAVIMENTO EM PISO INTERTRAVADO, COM BLOCO SEXTAVADO DE 25 X 25 CM, ESPESSURA 8 CM | D20: 92394 | E20: M2 | F20: 2630 | G20: =VLOOKUP(A20,CPU!$A$1:$N$4519,9) -> 73.69 | H20: =VLOOKUP(A20,CPU!$A$1:$N$4519,10) -> 89.363863 | I20: =ROUND(F20*H20,2) -> 235026.96
A21: C | B21: 3 | C21: TRANSPORTE DE MATERIAIS | I21: =SUM(I22:I23) -> 32119.57
A22: 10 | B22: 3.1 | C22: TRANSPORTE COM CAMINHÃO BASCULANTE, EM VIA URBANA PAVIMENTADA | D22: 95427 | E22: M3XKM | F22: 11999.99874 | G22: =VLOOKUP(A22,CPU!$A$1:$N$4519,9) -> 0.68 | H22: =VLOOKUP(A22,CPU!$A$1:$N$4519,10) -> 0.824636 | I22: =ROUND(F22*H22,2) -> 9895.63
A23: 11 | B23: 3.2 | C23: TRANSPORTE COM CAMINHÃO CARROCERIA, EM VIA URBANA PAVIMENTADA | D23: 100948 | E23: TXKM | F23: 23800 | G23: =VLOOKUP(A23,CPU!$A$1:$N$4519,9) -> 0.77 | H23: =VLOOKUP(A23,CPU!$A$1:$N$4519,10) -> 0.933779 | I23: =ROUND(F23*H23,2) -> 22223.94
A24: D | B24: 4 | C24: DRENAGEM E OBRAS COMPLEMENTARES | I24: =SUM(I25:I28) -> 47032.68
A25: 12 | B25: 4.1 | C25: GUIA (MEIO-FIO) CONCRETO, MOLDADA IN LOCO COM EXTRUSORA, 13 CM BASE X 22 CM ALTURA | D25: 94263 | E25: M | F25: 400 | G25: =VLOOKUP(A25,CPU!$A$1:$N$4519,9) -> 35.7 | H25: =VLOOKUP(A25,CPU!$A$1:$N$4519,10) -> 43.29339 | I25: =ROUND(F25*H25,2) -> 17317.36
A26: 13 | B26: 4.2 | C26: GUIA (MEIO-FIO) E SARJETA CONJUGADOS DE CONCRETO, MOLDADA IN LOCO COM EXTRUSORA, 45 CM BASE (15 CM BASE DA GUIA + 30 CM BASE DA SARJETA) X 22 CM ALTURA. | D26: 94267 | E26: M | F26: 380 | G26: =VLOOKUP(A26,CPU!$A$1:$N$4519,9) -> 57.4 | H26: =VLOOKUP(A26,CPU!$A$1:$N$4519,10) -> 69.60898 | I26: =ROUND(F26*H26,2) -> 26451.41
A27: 14 | B27: 4.3 | C27: FORNECIMENTO E INSTALAÇÃO DE PLACA DE SINALIZAÇÃO VIÁRIA - REGULAMENTAÇÃO 0,60MX0,60M, SUPORTE INCLUSO | D27: CPU.4 | E27: UNID. | F27: 5 | G27: =VLOOKUP(A27,CPU!$A$1:$N$4519,9) -> 393.92 | H27: =VLOOKUP(A27,CPU!$A$1:$N$4519,10) -> 477.706784 | I27: =ROUND(F27*H27,2) -> 2388.53
A28: 15 | B28: 4.4 | C28: FORNECIMENTO E INSTALAÇÃO DE PLACA DE IDENTIFICAÇÃO DE LOGRADOURO, SUPORTE INCLUSO - CONFORME PROJETO | D28: CPU.5 | E28: UNID. | F28: 2 | G28: =VLOOKUP(A28,CPU!$A$1:$N$4519,9) -> 360.92 | H28: =VLOOKUP(A28,CPU!$A$1:$N$4519,10) -> 437.687684 | I28: =ROUND(F28*H28,2) -> 875.38
B29: TOTAL GERAL DA OBRA COM BDI | I29: =SUM(I9,I15,I21,I24) -> 382050.43

Sheet CPU
A1: 1 | B1: CODEVASF | E1: COMPOSIÇÃO DE PREÇO UNITÁRIO | I1: =H11 -> 3757.04 | J1: =H13 -> 4556.162408 | K1: BDI CALCULADO: | M1: =ORÇAMENTO!I6 -> 0.2127
B2: OBRA: | C2: =ORÇAMENTO!C5 -> PAVIMENTAÇÃO EM BLOQUETE - DISTRITO DE SÃO PEDRO DO PASSA TRÊS - BURITIS/MG | G2: DATA: | H2: =ORÇAMENTO!C6 -> JULHO/2023
B3: SERVIÇO: | C3: =VLOOKUP(A1,ORÇAMENTO!A10:I26,3) -> MOBILIZAÇÃO E DESMOBILIZAÇÃO | E3: Referência: | F3: =VLOOKUP(A1,ORÇAMENTO!A10:I26,4) -> CPU.1 | G3: UNIDADE: | H3: =VLOOKUP(A1,ORÇAMENTO!A10:I26,5) -> GL
B5: TIPO ITEM | C5: CODIGO ITEM | D5: DESCRIÇÃO ITEM | E5: UNIDADE ITEM | F5: COEFICIENTE | G5: PRECO UNITARIO | H5: CUSTO TOTAL
B6: COMPOSICAO | C6: 5824 | D6: CAMINHÃO TOCO, PBT 16.000 KG, CARGA ÚTIL MÁX. 10.685 KG, DIST. ENTRE EIXOS 4,8 M, POTÊNCIA 189 CV, INCLUSIVE CARROCERIA FIXA ABERTA DE MADEIRA P/ TRANSPORTE GERAL DE CARGA SECA | E6: CHP | F6: 8 | G6: 188.68 | H6: =ROUNDDOWN(F6*G6,2) -> 1509.44
B7: COMPOSICAO | C7: 5826 | D7: CAMINHÃO TOCO, PBT 16.000 KG, CARGA ÚTIL MÁX. 10.685 KG, DIST. ENTRE EIXOS 4,8 M, POTÊNCIA 189 CV, INCLUSIVE CARROCERIA FIXA ABERTA DE MADEIRA P/ TRANSPORTE GERAL DE CARGA SECA | E7: CHI | F7: 4 | G7: 52.75 | H7: =ROUNDDOWN(F7*G7,2) -> 211
B8: COMPOSIÇÃO | C8: 88316 | D8: SERVENTE COM ENCARGOS COMPLEMENTARES | E8: H | F8: 8 | G8: 19.76 | H8: =ROUNDDOWN(F8*G8,2) -> 158.08
H9: =ROUNDDOWN(F9*G9,2) -> 0
B10: PRODUÇÃO DA EQUIPE | E10: 0.5 | F10: CUSTO | H10: =SUM(H6:H9) -> 1878.52
B11: TOTAL | H11: =H10/E10 -> 3757.04 | I11: OK
B12: BDI % | H12: =1+$M$1 -> 1.2127
B13: TOTAL DO SERVIÇO - R$ | H13: =H11*H12 -> 4556.162408
A15: =A1+1 -> 2 | B15: CODEVASF | E15: COMPOSIÇÃO DE PREÇO UNITÁRIO | I15: =H28 -> 27176.41764 | J15: =H30 -> 32956.84167
B16: OBRA: | C16: =$C$2 -> PAVIMENTAÇÃO EM BLOQUETE - DISTRITO DE SÃO PEDRO DO PASSA TRÊS - BURITIS/MG | G16: DATA: | H16: =$H$2 -> JULHO/2023
B17: SERVIÇO: | C17: =VLOOKUP(A15,ORÇAMENTO!$A$10:$I$26,3) -> ADMINISTRAÇÃO LOCAL | E17: SINAPI | F17: CPU | G17: UNIDADE: | H17: =VLOOKUP(A15,ORÇAMENTO!$A$10:$I$26,5) -> GL
B19: TIPO ITEM | C19: CODIGO ITEM | D19: DESCRIÇÃO ITEM | E19: UNIDADE ITEM | F19: COEFICIENTE | G19: PRECO UNITARIO | H19: CUSTO TOTAL
B20: INSUMO | C20: 14250 | D20: ENERGIA ELÉTRICA | E20: kwh | F20: 60 | G20: 0.83 | H20: =ROUNDDOWN(F20*G20,2) -> 49.8
B21: INSUMO | C21: 44480 | D21: TARIFA "A" ENTRE 0 E 20 M³ - FORNECIMENTO D'ÁGUA | E21: m³ | F21: 4 | G21: 15.7 | H21: =ROUNDDOWN(F21*G21,2) -> 62.8
B22: COTAÇÃO | C22: MERC. | D22: TELEFONE (PLANO CONTROLE) | E22: UNID | F22: 2 | G22: 60 | H22: 120
B23: COMPOSICAO | C23: 90777 | D23: ENGENHEIRO CIVIL DE OBRA COM ENCARGOS COMPLEMENTARES | E23: H | F23: =220/8 -> 27.5 | G23: 114.12 | H23: 3138.3
B24: COMPOSICAO | C24: 90776 | D24: ENCARREGADO GERAL COM ENCARGOS COMPLEMENTARES | E24: H | F24: 55 | G24: 57.73 | H24: =ROUNDDOWN(F24*G24,2) -> 3175.15
B25: COMPOSICAO | C25: 88321 | D25: TÉCNICO DE LABORATÓRIO COM ENCARGOS COMPLEMENTARES | E25: H | F25: 55 | G25: 45.67 | H25: =ROUNDDOWN(F25*G25,2) -> 2511.85
H26: 0
B27: PRODUÇÃO DA EQUIPE | E27: 0.3333 | F27: CUSTO | H27: =SUM(H20:H26) -> 9057.9
B28: TOTAL | H28: =H27/E27 -> 27176.41764 | I28: OK
B29: BDI % | H29: =1+$M$1 -> 1.2127
B30: TOTAL DO SERVIÇO - R$ | H30: =H28*H29 -> 32956.84167
A32: =A15+1 -> 3 | B32: CODEVASF | E32: COMPOSIÇÃO DE PREÇO UNITÁRIO | I32: =H39 -> 3075 | J32: =H41 -> 3729.0525
B33: OBRA: | C33: =$C$2 -> PAVIMENTAÇÃO EM BLOQUETE - DISTRITO DE SÃO PEDRO DO PASSA TRÊS - BURITIS/MG | G33: DATA: | H33: =$H$2 -> JULHO/2023
B34: SERVIÇO: | C34: =VLOOKUP(A32,ORÇAMENTO!$A$10:$I$26,3) -> CANTEIRO DE OBRAS | E34: SINAPI | F34: =VLOOKUP(A32,ORÇAMENTO!$A$10:$I$26,4) -> CPU.3 | G34: UNIDADE: | H34: =VLOOKUP(A32,ORÇAMENTO!$A$10:$I$26,5) -> GL
B36: TIPO ITEM | C36: CODIGO ITEM | D36: DESCRIÇÃO ITEM | E36: UNIDADE ITEM | F36: COEFICIENTE | G36: PRECO UNITARIO | H36: CUSTO TOTAL
B37: COTAÇÃO | C37: 10775 | D37: ALUGUEL DE IMÓVEL OU CONTEINER QUE ATENDA AOS REQUISITOS MÍNIMOS PARA INSTALAÇÃO DO CANTEIRO DE OBRAS | E37: MÊS | F37: 3 | G37: 1025 | H37: =ROUNDDOWN(F37*G37,2) -> 3075
B38: PRODUÇÃO DA EQUIPE | E38: 1 | F38: CUSTO | H38: =SUM(H37:H37) -> 3075
B39: TOTAL | H39: =H38/E38 -> 3075 | I39: OK
B40: BDI % | H40: =1+$M$1 -> 1.2127
B41: TOTAL DO SERVIÇO - R$ | H41: =H39*H40 -> 3729.0525
A43: =A32+1 -> 4 | B43: CODEVASF | E43: COMPOSIÇÃO DE PREÇO UNITÁRIO | I43: =H57 -> 308.09 | J43: =H59 -> 373.620743
B44: OBRA: | C44: =$C$2 -> PAVIMENTAÇÃO EM BLOQUETE - DISTRITO DE SÃO PEDRO DO PASSA TRÊS - BURITIS/MG | G44: DATA: | H44: =$H$2 -> JULHO/2023
B45: SERVIÇO: | C45: =VLOOKUP(A43,ORÇAMENTO!$A$10:$I$26,3) -> PLACA DE OBRA EM CHAPA DE AÇO GALVANIZADO | E45: SINAPI | F45: =VLOOKUP(A43,ORÇAMENTO!$A$10:$I$26,4) -> 103689 | G45: UNIDADE: | H45: =VLOOKUP(A43,ORÇAMENTO!$A$10:$I$26,5) -> M2
B47: TIPO ITEM | C47: CODIGO ITEM | D47: DESCRIÇÃO ITEM | E47: UNIDADE ITEM | F47: COEFICIENTE | G47: PRECO UNITARIO | H47: CUSTO TOTAL
B48: INSUMO | C48: 4509 | D48: SARRAFO *2,5 X 10* CM EM PINUS, MISTA OU EQUIVALENTE DA REGIAO - BRUTA | E48: M | F48: 3,2083000 | G48: 4,40 | H48: =ROUNDDOWN(F48*G48,2) -> 14.11
B49: INSUMO | C49: 4813 | D49: PLACA DE OBRA (PARA CONSTRUCAO CIVIL) EM CHAPA GALVANIZADA *N. 22*, ADESIVADA, DE *2,4 X 1,2* M (SEM POSTES PARA FIXACAO) | E49: M2 | F49: 1,0000000 | G49: 250,00 | H49: =ROUNDDOWN(F49*G49,2) -> 250
B50: INSUMO | C50: 5065 | D50: PREGO DE ACO POLIDO COM CABECA 10 X 10 (7/8 X 17) | E50: KG | F50: 0,0113000 | G50: 38,80 | H50: 0.43
B51: INSUMO | C51: 5069 | D51: PREGO DE ACO POLIDO COM CABECA 17 X 27 (2 1/2 X 11) | E51: KG | F51: 0,0132000 | G51: 20,79 | H51: 0.27
B52: COMPOSICAO | C52: 88262 | D52: CARPINTEIRO DE FORMAS COM ENCARGOS COMPLEMENTARES | E52: H | F52: 0,3729000 | G52: 27,05 | H52: 10.08
B53: COMPOSICAO | C53: 88316 | D53: SERVENTE COM ENCARGOS COMPLEMENTARES | E53: H | F53: 1,1186000 | G53: 19,76 | H53: 22.1
B54: COMPOSICAO | C54: 102234 | D54: PINTURA IMUNIZANTE PARA MADEIRA, 2 DEMÃOS | E54: M2 | F54: 0,5000000 | G54: 22,20 | H54: =ROUNDDOWN(F54*G54,2) -> 11.1
H55: 0
B56: PRODUÇÃO DA EQUIPE | E56: 1 | F56: CUSTO | H56: =SUM(H48:H55) -> 308.09
B57: TOTAL | H57: =H56/E56 -> 308.09 | I57: OK
B58: BDI % | H58: =1+$M$1 -> 1.2127
B59: TOTAL DO SERVIÇO - R$ | H59: =H57*H58 -> 373.620743
A61: =A43+1 -> 5 | B61: CODEVASF | E61: COMPOSIÇÃO DE PREÇO UNITÁRIO | I61: =H68 -> 0.67 | J61: =H70 -> 0.812509
B62: OBRA: | C62: =$C$2 -> PAVIMENTAÇÃO EM BLOQUETE - DISTRITO DE SÃO PEDRO DO PASSA TRÊS - BURITIS/MG | G62: DATA: | H62: =$H$2 -> JULHO/2023
B63: SERVIÇO: | C63: =VLOOKUP(A61,ORÇAMENTO!$A$10:$I$26,3) -> LOCAÇÃO DE PAVIMENTAÇÃO | E63: SINAPI | F63: =VLOOKUP(A61,ORÇAMENTO!$A$10:$I$26,4) -> 99064 | G63: UNIDADE: | H63: =VLOOKUP(A61,ORÇAMENTO!$A$10:$I$26,5) -> M
B65: TIPO ITEM | C65: CODIGO ITEM | D65: DESCRIÇÃO ITEM | E65: UNIDADE ITEM | F65: COEFICIENTE | G65: PRECO UNITARIO | H65: CUSTO TOTAL
B66: COMPOSICAO | C66: 99058 | D66: LOCAÇÃO DE PONTO PARA REFERÊNCIA TOPOGRÁFICA | E66: UN | F66: 0,0500000 | G66: 13,42 | H66: =ROUNDDOWN(F66*G66,2) -> 0.67
B67: PRODUÇÃO DA EQUIPE | E67: 1 | F67: CUSTO | H67: =SUM(H66:H66) -> 0.67
B68: TOTAL | H68: =H67/E67 -> 0.67 | I68: OK
B69: BDI % | H69: =1+$M$1 -> 1.2127
B70: TOTAL DO SERVIÇO - R$ | H70: =H68*H69 -> 0.812509
A72: =A61+1 -> 6 | B72: CODEVASF | E72: COMPOSIÇÃO DE PREÇO UNITÁRIO | I72: =H81 -> 1.89 | J72: =H83 -> 2.292003
B73: OBRA: | C73: =$C$2 -> PAVIMENTAÇÃO EM BLOQUETE - DISTRITO DE SÃO PEDRO DO PASSA TRÊS - BURITIS/MG | G73: DATA: | H73: =$H$2 -> JULHO/2023 | J73: =H98 -> 0
B74: SERVIÇO: | C74: =VLOOKUP(A72,ORÇAMENTO!$A$10:$I$26,3) -> ESCAVAÇÃO HORIZONTAL EM SOLO DE 1A CATEGORIA COM TRATOR DE ESTEIRAS | E74: SINAPI | F74: =VLOOKUP(A72,ORÇAMENTO!$A$10:$I$26,4) -> 101116 | G74: UNIDADE: | H74: =VLOOKUP(A72,ORÇAMENTO!$A$10:$I$26,5) -> M3
B76: TIPO ITEM | C76: CODIGO ITEM | D76: DESCRIÇÃO ITEM | E76: UNIDADE ITEM | F76: COEFICIENTE | G76: PRECO UNITARIO | H76: CUSTO TOTAL
B77: COMPOSICAO | C77: 5847 | D77: TRATOR DE ESTEIRAS, POTÊNCIA 170 HP, PESO OPERACIONAL 19 T, CAÇAMBA 5,2 M3 - CHP DIURNO. AF_06/2014 | E77: CHP | F77: 0,0048000 | G77: 223,32 | H77: =ROUNDDOWN(F77*G77,2) -> 1.07
B78: COMPOSICAO | C78: 5849 | D78: TRATOR DE ESTEIRAS, POTÊNCIA 170 HP, PESO OPERACIONAL 19 T, CAÇAMBA 5,2 M3 - CHI DIURNO. AF_06/2014 | E78: CHI | F78: 0,0082000 | G78: 70,10 | H78: =ROUNDDOWN(F78*G78,2) -> 0.57
B79: COMPOSICAO | C79: 88316 | D79: SERVENTE COM ENCARGOS COMPLEMENTARES | E79: H | F79: 0,0131000 | G79: 19,76 | H79: =ROUNDDOWN(F79*G79,2) -> 0.25
B80: PRODUÇÃO DA EQUIPE | E80: 1 | F80: CUSTO | H80: =SUM(H77:H79) -> 1.89
B81: TOTAL | H81: =H80/E80 -> 1.89 | I81: OK
B82: BDI % | H82: =1+$M$1 -> 1.2127
B83: TOTAL DO SERVIÇO - R$ | H83: =H81*H82 -> 2.292003
A85: 7 | B85: CODEVASF | E85: COMPOSIÇÃO DE PREÇO UNITÁRIO | I85: =H95 -> 8.11 | J85: =H97 -> 9.834997
B86: OBRA: | C86: =$C$2 -> PAVIMENTAÇÃO EM BLOQUETE - DISTRITO DE SÃO PEDRO DO PASSA TRÊS - BURITIS/MG | G86: DATA: | H86: =$H$2 -> JULHO/2023
B87: SERVIÇO: | C87: =VLOOKUP(A85,ORÇAMENTO!$A$10:$I$26,3) -> CARGA, MANOBRA E DESCARGA DE SOLOS E MATERIAIS GRANULARES EM CAMINHÃO BASCULANTE - CARGA COM PÁ CARREGADEIRA E DESCARGA LIVRE | E87: SINAPI | F87: =VLOOKUP(A85,ORÇAMENTO!$A$10:$I$26,4) -> 100976 | G87: UNIDADE: | H87: =VLOOKUP(A85,ORÇAMENTO!$A$10:$I$26,5) -> M3
B89: TIPO ITEM | C89: CODIGO ITEM | D89: DESCRIÇÃO ITEM | E89: UNIDADE ITEM | F89: COEFICIENTE | G89: PRECO UNITARIO | H89: CUSTO TOTAL
B90: COMPOSICAO | C90: 5940 | D90: PÁ CARREGADEIRA SOBRE RODAS, POTÊNCIA LÍQUIDA 128 HP, CAPACIDADE DA CAÇAMBA 1,7 A 2,8 M3, PESO OPERACIONAL 11632 KG - CHP DIURNO. AF_06/2014 | E90: CHP | F90: 0,0083000 | G90: 204,94 | H90: =ROUNDDOWN(F90*G90,2) -> 1.7
B91: COMPOSICAO | C91: 5942 | D91: PÁ CARREGADEIRA SOBRE RODAS, POTÊNCIA LÍQUIDA 128 HP, CAPACIDADE DA CAÇAMBA 1,7 A 2,8 M3, PESO OPERACIONAL 11632 KG - CHI DIURNO. AF_06/2014 | E91: CHI | F91: 0,0074000 | G91: 82,36 | H91: =ROUNDDOWN(F91*G91,2) -> 0.6
B92: COMPOSICAO | C92: 89883 | D92: CAMINHÃO BASCULANTE 18 M3, COM CAVALO MECÂNICO DE CAPACIDADE MÁXIMA DE TRAÇÃO COMBINADO DE 45000 KG, POTÊNCIA 330 CV, INCLUSIVE SEMIREBOQUE COM CAÇAMBA METÁLICA - CHP DIURNO. AF_12/2014 | E92: CHP | F92: 0,0153000 | G92: 328,78 | H92: =ROUNDDOWN(F92*G92,2) -> 5.03
B93: COMPOSICAO | C93: 89884 | D93: CAMINHÃO BASCULANTE 18 M3, COM CAVALO MECÂNICO DE CAPACIDADE MÁXIMA DE TRAÇÃO COMBINADO DE 45000 KG, POTÊNCIA 330 CV, INCLUSIVE SEMIREBOQUE COM CAÇAMBA METÁLICA - CHI DIURNO. AF_12/2014 | E93: CHI | F93: 0,0095000 | G93: 82,93 | H93: =ROUNDDOWN(F93*G93,2) -> 0.78
B94: PRODUÇÃO DA EQUIPE | E94: 1 | F94: CUSTO | H94: =SUM(H90:H93) -> 8.11
B95: TOTAL | H95: =H94/E94 -> 8.11 | I95: OK
B96: BDI % | H96: =1+$M$1 -> 1.2127
B97: TOTAL DO SERVIÇO - R$ | H97: =H95*H96 -> 9.834997
A99: 8 | B99: CODEVASF | E99: COMPOSIÇÃO DE PREÇO UNITÁRIO | I99: =H112 -> 2.37 | J99: =H114 -> 2.874099
B100: OBRA: | C100: =$C$2 -> PAVIMENTAÇÃO EM BLOQUETE - DISTRITO DE SÃO PEDRO DO PASSA TRÊS - BURITIS/MG | G100: DATA: | H100: =$H$2 -> JULHO/2023
B101: SERVIÇO: | C101: =VLOOKUP(A99,ORÇAMENTO!$A$10:$I$26,3) -> REGULARIZAÇÃO E COMPACTAÇÃO DE SUBLEITO | E101: SINAPI | F101: =VLOOKUP(A99,ORÇAMENTO!$A$10:$I$26,4) -> 100576 | G101: UNIDADE: | H101: =VLOOKUP(A99,ORÇAMENTO!$A$10:$I$26,5) -> M2
B103: TIPO ITEM | C103: CODIGO ITEM | D103: DESCRIÇÃO ITEM | E103: UNIDADE ITEM | F103: COEFICIENTE | G103: PRECO UNITARIO | H103: CUSTO TOTAL
B104: COMPOSICAO | C104: 5901 | D104: CAMINHÃO PIPA 10.000 L TRUCADO, PESO BRUTO TOTAL 23.000 KG, CARGA ÚTIL MÁXIMA 15.935 KG, DISTÂNCIA ENTRE EIXOS 4,8 M, POTÊNCIA 230 CV, INCLUSIVE TANQUE DE AÇO PARA TRANSPORTE DE ÁGUA | E104: CHP | F104: 0,0010000 | G104: 277,01 | H104: =ROUNDDOWN(F104*G104,2) -> 0.27
B105: COMPOSICAO | C105: 5903 | D105: CAMINHÃO PIPA 10.000 L TRUCADO, PESO BRUTO TOTAL 23.000 KG, CARGA ÚTIL MÁXIMA 15.935 KG, DISTÂNCIA ENTRE EIXOS 4,8 M, POTÊNCIA 230 CV, INCLUSIVE TANQUE DE AÇO PARA TRANSPORTE DE ÁGUA | E105: CHI | F105: 0,0070000 | G105: 63,63 | H105: 0.44
B106: COMPOSICAO | C106: 5932 | D106: MOTONIVELADORA POTÊNCIA BÁSICA LÍQUIDA (PRIMEIRA MARCHA) 125 HP, PESO BRUTO 13032 KG, LARGURA DA LÂMINA DE 3,7 M | E106: CHP | F106: 0,0001000 | G106: 240,68 | H106: 0.02
B107: COMPOSICAO | C107: 5934 | D107: MOTONIVELADORA POTÊNCIA BÁSICA LÍQUIDA (PRIMEIRA MARCHA) 125 HP, PESO BRUTO 13032 KG, LARGURA DA LÂMINA DE 3,7 M | E107: CHI | F107: 0,0080000 | G107: 90,70 | H107: 0.72
B108: COMPOSICAO | C108: 73436 | D108: ROLO COMPACTADOR VIBRATÓRIO PÉ DE CARNEIRO PARA SOLOS, POTÊNCIA 80 HP, PESO OPERACIONAL SEM/COM LASTRO 7,4 / 8,8 T, LARGURA DE TRABALHO 1,68 M | E108: CHP | F108: 0,0020000 | G108: 200,49 | H108: 0.4
B109: COMPOSICAO | C109: 88316 | D109: SERVENTE COM ENCARGOS COMPLEMENTARES | E109: H | F109: 0,0080000 | G109: 19,76 | H109: 0.15
B110: COMPOSICAO | C110: 93244 | D110: ROLO COMPACTADOR VIBRATÓRIO PÉ DE CARNEIRO PARA SOLOS, POTÊNCIA 80 HP, PESO OPERACIONAL SEM/COM LASTRO 7,4 / 8,8 T, LARGURA DE TRABALHO 1,68 M | E110: CHI | F110: 0,0060000 | G110: 62,85 | H110: 0.37
B111: PRODUÇÃO DA EQUIPE | E111: 1 | F111: CUSTO | H111: =SUM(H104:H110) -> 2.37
B112: TOTAL | H112: =H111/E111 -> 2.37 | I112: OK
B113: BDI % | H113: =1+$M$1 -> 1.2127
B114: TOTAL DO SERVIÇO - R$ | H114: =H112*H113 -> 2.874099
A116: 8.5 | B116: CODEVASF | E116: COMPOSIÇÃO DE PREÇO UNITÁRIO | I116: =H132 -> 11.25 | J116: =H134 -> 13.642875
B117: OBRA: | C117: =$C$2 -> PAVIMENTAÇÃO EM BLOQUETE - DISTRITO DE SÃO PEDRO DO PASSA TRÊS - BURITIS/MG | G117: DATA: | H117: =$H$2 -> JULHO/2023
B118: SERVIÇO: | C118: =VLOOKUP(A116,ORÇAMENTO!$A$10:$I$26,3) -> EXECUÇÃO E COMPACTAÇÃO DE BASE E OU SUB BASE PARA PAVIMENTAÇÃO DE SOLO DE COMPORTAMENTO LATERÍTICO - EXCLUSIVE SOLO, ESCAVAÇÃO, CARGA E TRANSPORTE | E118: SINAPI | F118: =VLOOKUP(A116,ORÇAMENTO!$A$10:$I$26,4) -> 96388 | G118: UNIDADE: | H118: =VLOOKUP(A116,ORÇAMENTO!$A$10:$I$26,5) -> M3
B120: TIPO ITEM | C120: CODIGO ITEM | D120: DESCRIÇÃO ITEM | E120: UNIDADE ITEM | F120: COEFICIENTE | G120: PRECO UNITARIO | H120: CUSTO TOTAL
B121: COMPOSICAO | C121: 5684 | D121: ROLO COMPACTADOR VIBRATÓRIO DE UM CILINDRO AÇO LISO, POTÊNCIA 80 HP, PESO OPERACIONAL MÁXIMO 8,1 T, IMPACTO DINÂMICO 16,15 / 9,5 T, LARGURA DE TRABALHO 1,68 M - CHP DIURNO. AF_06/2014 | E121: CHP | F121: 0,0030000 | G121: 152,10 | H121: =ROUNDDOWN(F121*G121,2) -> 0.45
B122: COMPOSICAO | C122: 5685 | D122: ROLO COMPACTADOR VIBRATÓRIO DE UM CILINDRO AÇO LISO, POTÊNCIA 80 HP, PESO OPERACIONAL MÁXIMO 8,1 T, IMPACTO DINÂMICO 16,15 / 9,5 T, LARGURA DE TRABALHO 1,68 M - CHI DIURNO. AF_06/2014 | E122: CHI | F122: 0,0230000 | G122: 61,31 | H122: 1.41
B123: COMPOSICAO | C123: 5901 | D123: CAMINHÃO PIPA 10.000 L TRUCADO, PESO BRUTO TOTAL 23.000 KG, CARGA ÚTIL MÁXIMA 15.935 KG, DISTÂNCIA ENTRE EIXOS 4,8 M, POTÊNCIA 230 CV, INCLUSIVE TANQUE DE AÇO PARA TRANSPORTE DE ÁGUA - CHP DIURNO. AF_06/2014 | E123: CHP | F123: 0,0040000 | G123: 277,01 | H123: 1.1
B124: COMPOSICAO | C124: 5903 | D124: CAMINHÃO PIPA 10.000 L TRUCADO, PESO BRUTO TOTAL 23.000 KG, CARGA ÚTIL MÁXIMA 15.935 KG, DISTÂNCIA ENTRE EIXOS 4,8 M, POTÊNCIA 230 CV, INCLUSIVE TANQUE DE AÇO PARA TRANSPORTE DE ÁGUA - CHI DIURNO. AF_06/2014 | E124: CHI | F124: 0,0220000 | G124: 63,63 | H124: 1.39
B125: COMPOSICAO | C125: 5932 | D125: MOTONIVELADORA POTÊNCIA BÁSICA LÍQUIDA (PRIMEIRA MARCHA) 125 HP, PESO BRUTO 13032 KG, LARGURA DA LÂMINA DE 3,7 M - CHP DIURNO. AF_06/2014 | E125: CHP | F125: 0,0080000 | G125: 240,68 | H125: 1.92
B126: COMPOSICAO | C126: 5934 | D126: MOTONIVELADORA POTÊNCIA BÁSICA LÍQUIDA (PRIMEIRA MARCHA) 125 HP, PESO BRUTO 13032 KG, LARGURA DA LÂMINA DE 3,7 M - CHI DIURNO. AF_06/2014 | E126: CHI | F126: 0,0190000 | G126: 90,70 | H126: 1.72
B127: COMPOSICAO | C127: 88316 | D127: SERVENTE COM ENCARGOS COMPLEMENTARES | E127: H | F127: 0,0260000 | G127: 19,76 | H127: 0.51
B128: INSUMO | C128: 4743 | D128: CASCALHO DE CAVA (FORNECIMENTO PREFEITURA) | E128: M3 | F128: 1 | H128: 0
B129: COMPOSICAO | C129: 96463 | D129: ROLO COMPACTADOR DE PNEUS, ESTATICO, PRESSAO VARIAVEL, POTENCIA 110 HP, PESO SEM/COM LASTRO 10,8/27 T, LARGURA DE ROLAGEM 2,30 M - CHP DIURNO. AF_06/2017 | E129: CHP | F129: 0,0040000 | G129: 211,34 | H129: 0.84
B130: COMPOSICAO | C130: 96464 | D130: ROLO COMPACTADOR DE PNEUS, ESTATICO, PRESSAO VARIAVEL, POTENCIA 110 HP, PESO SEM/COM LASTRO 10,8/27 T, LARGURA DE ROLAGEM 2,30 M - CHI DIURNO. AF_06/2017 | E130: CHI | F130: 0,0220000 | G130: 86,84 | H130: 1.91
B131: PRODUÇÃO DA EQUIPE | E131: 1 | F131: CUSTO | H131: =SUM(H121:H130) -> 11.25
B132: TOTAL | H132: =H131/E131 -> 11.25 | I132: OK
B133: BDI % | H133: =1+$M$1 -> 1.2127
B134: TOTAL DO SERVIÇO - R$ | H134: =H132*H133 -> 13.642875
A136: 9 | B136: CODEVASF | E136: COMPOSIÇÃO DE PREÇO UNITÁRIO | I136: =H151 -> 73.69 | J136: =H153 -> 89.363863
B137: OBRA: | C137: =$C$2 -> PAVIMENTAÇÃO EM BLOQUETE - DISTRITO DE SÃO PEDRO DO PASSA TRÊS - BURITIS/MG | G137: DATA: | H137: =$H$2 -> JULHO/2023
B138: SERVIÇO: | C138: =VLOOKUP(A136,ORÇAMENTO!$A$10:$I$26,3) -> EXECUÇÃO DE PAVIMENTO EM PISO INTERTRAVADO, COM BLOCO SEXTAVADO DE 25 X 25 CM, ESPESSURA 8 CM | E138: SINAPI | F138: =VLOOKUP(A136,ORÇAMENTO!$A$10:$I$26,4) -> 92394 | G138: UNIDADE: | H138: =VLOOKUP(A136,ORÇAMENTO!$A$10:$I$26,5) -> M2
B140: TIPO ITEM | C140: CODIGO ITEM | D140: DESCRIÇÃO ITEM | E140: UNIDADE ITEM | F140: COEFICIENTE | G140: PRECO UNITARIO | H140: CUSTO TOTAL
B141: INSUMO | C141: 370 | D141: AREIA MEDIA - POSTO JAZIDA/FORNECEDOR (RETIRADO NA JAZIDA, SEM TRANSPORTE) | E141: M3 | F141: 0,0568000 | G141: 97,50 | H141: =ROUNDDOWN(F141*G141,2) -> 5.53
B142: INSUMO | C142: 712 | D142: BLOQUETE/PISO INTERTRAVADO DE CONCRETO - MODELO SEXTAVADO / HEXAGONAL, 25 CM X 25 CM, E = 8 CM, RESISTENCIA DE 35 MPA (NBR 9781), COR NATURAL | E142: M2 | F142: 1,0038000 | G142: 60,25 | H142: 60.47
B143: INSUMO | C143: 4741 | D143: PO DE PEDRA (POSTO PEDREIRA/FORNECEDOR, SEM FRETE) | E143: M3 | F143: 0,0066000 | G143: 102,34 | H143: 0.67
B144: COMPOSICAO | C144: 88260 | D144: CALCETEIRO COM ENCARGOS COMPLEMENTARES | E144: H | F144: 0,1683000 | G144: 21,06 | H144: 3.54
B145: COMPOSICAO | C145: 88316 | D145: SERVENTE COM ENCARGOS COMPLEMENTARES | E145: H | F145: 0,1683000 | G145: 19,76 | H145: 3.32
B146: COMPOSICAO | C146: 91277 | D146: PLACA VIBRATÓRIA REVERSÍVEL COM MOTOR 4 TEMPOS A GASOLINA, FORÇA CENTRÍFUGA DE 25 KN (2500 KGF), POTÊNCIA 5,5 CV | E146: CHP | F146: 0,0055000 | G146: 8,37 | H146: 0.04
B147: COMPOSICAO | C147: 91278 | D147: PLACA VIBRATÓRIA REVERSÍVEL COM MOTOR 4 TEMPOS A GASOLINA, FORÇA CENTRÍFUGA DE 25 KN (2500 KGF), POTÊNCIA 5,5 CV | E147: CHI | F147: 0,0787000 | G147: 0,46 | H147: 0.03
B148: COMPOSICAO | C148: 91283 | D148: CORTADORA DE PISO COM MOTOR 4 TEMPOS A GASOLINA, POTÊNCIA DE 13 HP, COM DISCO DE CORTE DIAMANTADO SEGMENTADO PARA CONCRETO, DIÂMETRO DE 350 MM, FURO DE 1" (14 X 1") | E148: CHP | F148: 0,0038000 | G148: 9,22 | H148: 0.03
B149: COMPOSICAO | C149: 91285 | D149: CORTADORA DE PISO COM MOTOR 4 TEMPOS A GASOLINA, POTÊNCIA DE 13 HP, COM DISCO DE CORTE DIAMANTADO SEGMENTADO PARA CONCRETO, DIÂMETRO DE 350 MM, FURO DE 1" (14 X 1") | E149: CHI | F149: 0,0804000 | G149: 0,83 | H149: 0.06
B150: PRODUÇÃO DA EQUIPE | E150: 1 | F150: CUSTO | H150: =SUM(H141:H149) -> 73.69
B151: TOTAL | H151: =H150/E150 -> 73.69 | I151: OK
B152: BDI % | H152: =1+$M$1 -> 1.2127
B153: TOTAL DO SERVIÇO - R$ | H153: =H151*H152 -> 89.363863
A155: 10 | B155: CODEVASF | E155: COMPOSIÇÃO DE PREÇO UNITÁRIO | I155: =H164 -> 0.68 | J155: =H166 -> 0.824636
B156: OBRA: | C156: =$C$2 -> PAVIMENTAÇÃO EM BLOQUETE - DISTRITO DE SÃO PEDRO DO PASSA TRÊS - BURITIS/MG | G156: DATA: | H156: =$H$2 -> JULHO/2023
B157: SERVIÇO: | C157: =VLOOKUP(A155,ORÇAMENTO!$A$10:$I$26,3) -> TRANSPORTE COM CAMINHÃO BASCULANTE, EM VIA URBANA PAVIMENTADA | E157: SINAPI | F157: =VLOOKUP(A155,ORÇAMENTO!$A$10:$I$26,4) -> 95427 | G157: UNIDADE: | H157: =VLOOKUP(A155,ORÇAMENTO!$A$10:$I$26,5) -> M3XKM
B159: TIPO ITEM | C159: CODIGO ITEM | D159: DESCRIÇÃO ITEM | E159: UNIDADE ITEM | F159: COEFICIENTE | G159: PRECO UNITARIO | H159: CUSTO TOTAL
B160: COMPOSICAO | C160: 89883 | D160: CAMINHÃO BASCULANTE 18 M3, COM CAVALO MECÂNICO DE CAPACIDADE MÁXIMA DE TRAÇÃO COMBINADO DE 45000 KG, POTÊNCIA 330 CV, INCLUSIVE SEMIREBOQUE COM CAÇAMBA METÁLICA | E160: CHP | F160: 0,0019000 | G160: 328,78 | H160: =ROUNDDOWN(F160*G160,2) -> 0.62
B161: COMPOSICAO | C161: 89884 | D161: CAMINHÃO BASCULANTE 18 M3, COM CAVALO MECÂNICO DE CAPACIDADE MÁXIMA DE TRAÇÃO COMBINADO DE 45000 KG, POTÊNCIA 330 CV, INCLUSIVE SEMIREBOQUE COM CAÇAMBA METÁLICA | E161: CHI | F161: 0,0008000 | G161: 82,93 | H161: =ROUNDDOWN(F161*G161,2) -> 0.06
H162: =F162*G162 -> 0
B163: PRODUÇÃO DA EQUIPE | E163: 1 | F163: CUSTO | H163: =SUM(H160:H162) -> 0.68
B164: TOTAL | H164: =H163/E163 -> 0.68 | I164: OK
B165: BDI % | H165: =1+$M$1 -> 1.2127
B166: TOTAL DO SERVIÇO - R$ | H166: =H164*H165 -> 0.824636
A168: 11 | B168: CODEVASF | E168: COMPOSIÇÃO DE PREÇO UNITÁRIO | I168: =H177 -> 0.77 | J168: =H179 -> 0.933779
B169: OBRA: | C169: =$C$2 -> PAVIMENTAÇÃO EM BLOQUETE - DISTRITO DE SÃO PEDRO DO PASSA TRÊS - BURITIS/MG | G169: DATA: | H169: =$H$2 -> JULHO/2023
B170: SERVIÇO: | C170: TRANSPORTE COM CAMINHÃO CARROCERIA 9T, EM VIA URBANA PAVIMENTADA | E170: SINAPI | F170: =VLOOKUP(A168,ORÇAMENTO!$A$10:$I$26,4) -> 100948 | G170: UNIDADE: | H170: =VLOOKUP(A168,ORÇAMENTO!$A$10:$I$26,5) -> TXKM
B172: TIPO ITEM | C172: CODIGO ITEM | D172: DESCRIÇÃO ITEM | E172: UNIDADE ITEM | F172: COEFICIENTE | G172: PRECO UNITARIO | H172: CUSTO TOTAL
B173: COMPOSICAO | C173: 5824 | D173: CAMINHÃO TOCO, PBT 16.000 KG, CARGA ÚTIL MÁX. 10.685 KG, DIST. ENTRE EIXOS 4,8 M, POTÊNCIA 189 CV, INCLUSIVE CARROCERIA FIXA ABERTA DE MADEIRA P/ TRANSPORTE GERAL DE CARGA SECA | E173: CHP | F173: 0,0037000 | G173: 188,68 | H173: =ROUNDDOWN(F173*G173,2) -> 0.69
B174: COMPOSICAO | C174: 5826 | D174: CAMINHÃO TOCO, PBT 16.000 KG, CARGA ÚTIL MÁX. 10.685 KG, DIST. ENTRE EIXOS 4,8 M, POTÊNCIA 189 CV, INCLUSIVE CARROCERIA FIXA ABERTA DE MADEIRA P/ TRANSPORTE GERAL DE CARGA SECA | E174: CHI | F174: 0,0016000 | G174: 52,75 | H174: =ROUNDDOWN(F174*G174,2) -> 0.08
H175: =F175*G175 -> 0
B176: PRODUÇÃO DA EQUIPE | E176: 1 | F176: CUSTO | H176: =SUM(H173:H175) -> 0.77
B177: TOTAL | H177: =H176/E176 -> 0.77 | I177: OK
B178: BDI % | H178: =1+$M$1 -> 1.2127
B179: TOTAL DO SERVIÇO - R$ | H179: =H177*H178 -> 0.933779
A181: 12 | B181: CODEVASF | E181: COMPOSIÇÃO DE PREÇO UNITÁRIO | I181: =H196 -> 35.7 | J181: =H198 -> 43.29339
B182: OBRA: | C182: =$C$2 -> PAVIMENTAÇÃO EM BLOQUETE - DISTRITO DE SÃO PEDRO DO PASSA TRÊS - BURITIS/MG | G182: DATA: | H182: =$H$2 -> JULHO/2023
B183: SERVIÇO: | C183: =VLOOKUP(A181,ORÇAMENTO!$A$10:$I$26,3) -> GUIA (MEIO-FIO) CONCRETO, MOLDADA IN LOCO COM EXTRUSORA, 13 CM BASE X 22 CM ALTURA | E183: SINAPI | F183: =VLOOKUP(A181,ORÇAMENTO!$A$10:$I$26,4) -> 94263 | G183: UNIDADE: | H183: =VLOOKUP(A181,ORÇAMENTO!$A$10:$I$26,5) -> M
B185: TIPO ITEM | C185: CODIGO ITEM | D185: DESCRIÇÃO ITEM | E185: UNIDADE ITEM | F185: COEFICIENTE | G185: PRECO UNITARIO | H185: CUSTO TOTAL
B186: INSUMO | C186: 370 | D186: AREIA MEDIA - POSTO JAZIDA/FORNECEDOR (RETIRADO NA JAZIDA, SEM TRANSPORTE) | E186: M3 | F186: 0,0070000 | G186: 97,50 | H186: =ROUNDDOWN(F186*G186,2) -> 0.68
B187: INSUMO | C187: 34492 | D187: CONCRETO USINADO BOMBEAVEL, CLASSE DE RESISTENCIA C20, COM BRITA 0 E 1, SLUMP = 100 +/- 20 MM | E187: M3 | F187: 0,0300000 | G187: 550,00 | H187: =ROUNDDOWN(F187*G187,2) -> 16.5
B188: COMPOSICAO | C188: 88243 | D188: AJUDANTE ESPECIALIZADO COM ENCARGOS COMPLEMENTARES | E188: H | F188: 0,0870000 | G188: 21,76 | H188: 1.89
B189: COMPOSICAO | C189: 88309 | D189: PEDREIRO COM ENCARGOS COMPLEMENTARES | E189: H | F189: 0,2210000 | G189: 27,45 | H189: 6.06
B190: COMPOSICAO | C190: 88316 | D190: SERVENTE COM ENCARGOS COMPLEMENTARES | E190: H | F190: 0,4420000 | G190: 19,76 | H190: 8.73
B191: COMPOSICAO | C191: 88631 | D191: ARGAMASSA TRAÇO 1:4 (EM VOLUME DE CIMENTO E AREIA MÉDIA ÚMIDA), PREPARO MANUAL | E191: M3 | F191: 0,0020000 | G191: 579,77 | H191: 1.15
B192: COMPOSICAO | C192: 92960 | D192: MÁQUINA EXTRUSORA DE CONCRETO PARA GUIAS E SARJETAS, MOTOR A DIESEL, POTÊNCIA 14 CV | E192: CHP | F192: 0,0140000 | G192: 19,48 | H192: 0.27
B193: COMPOSICAO | C193: 92961 | D193: MÁQUINA EXTRUSORA DE CONCRETO PARA GUIAS E SARJETAS, MOTOR A DIESEL, POTÊNCIA 14 CV | E193: CHI | F193: 0,0720000 | G193: 5,89 | H193: 0.42
B195: PRODUÇÃO DA EQUIPE | E195: 1 | F195: CUSTO | H195: =SUM(H186:H194) -> 35.7
B196: TOTAL | H196: =H195/E195 -> 35.7 | I196: OK
B197: BDI % | H197: =1+$M$1 -> 1.2127
B198: TOTAL DO SERVIÇO - R$ | H198: =H196*H197 -> 43.29339
A200: 13 | B200: CODEVASF | E200: COMPOSIÇÃO DE PREÇO UNITÁRIO | I200: =H215 -> 57.4 | J200: =H217 -> 69.60898
B201: OBRA: | C201: =$C$2 -> PAVIMENTAÇÃO EM BLOQUETE - DISTRITO DE SÃO PEDRO DO PASSA TRÊS - BURITIS/MG | G201: DATA: | H201: =$H$2 -> JULHO/2023
B202: SERVIÇO: | C202: =VLOOKUP(A200,ORÇAMENTO!$A$10:$I$26,3) -> GUIA (MEIO-FIO) E SARJETA CONJUGADOS DE CONCRETO, MOLDADA IN LOCO COM EXTRUSORA, 45 CM BASE (15 CM BASE DA GUIA + 30 CM BASE DA SARJETA) X 22 CM ALTURA. | E202: SINAPI | F202: =VLOOKUP(A200,ORÇAMENTO!$A$10:$I$26,4) -> 94267 | G202: UNIDADE: | H202: =VLOOKUP(A200,ORÇAMENTO!$A$10:$I$26,5) -> M
B204: TIPO ITEM | C204: CODIGO ITEM | D204: DESCRIÇÃO ITEM | E204: UNIDADE ITEM | F204: COEFICIENTE | G204: PRECO UNITARIO | H204: CUSTO TOTAL
B205: INSUMO | C205: 370 | D205: AREIA MEDIA - POSTO JAZIDA/FORNECEDOR (RETIRADO NA JAZIDA, SEM TRANSPORTE) | E205: M3 | F205: 0,0150000 | G205: 97,50 | H205: =ROUNDDOWN(F205*G205,2) -> 1.46
B206: INSUMO | C206: 34492 | D206: CONCRETO USINADO BOMBEAVEL, CLASSE DE RESISTENCIA C20, COM BRITA 0 E 1, SLUMP = 100 +/- 20 MM | E206: M3 | F206: 0,0630000 | G206: 550,00 | H206: 34.65
B207: COMPOSICAO | C207: 88243 | D207: AJUDANTE ESPECIALIZADO COM ENCARGOS COMPLEMENTARES | E207: H | F207: 0,1090000 | G207: 21,76 | H207: 2.37
B208: COMPOSICAO | C208: 88309 | D208: PEDREIRO COM ENCARGOS COMPLEMENTARES | E208: H | F208: 0,2440000 | G208: 27,45 | H208: 6.69
B209: COMPOSICAO | C209: 88316 | D209: SERVENTE COM ENCARGOS COMPLEMENTARES | E209: H | F209: 0,4870000 | G209: 19,76 | H209: 9.62
B210: COMPOSICAO | C210: 88631 | D210: ARGAMASSA TRAÇO 1:4 (EM VOLUME DE CIMENTO E AREIA MÉDIA ÚMIDA), PREPARO MANUAL | E210: M3 | F210: 0,0030000 | G210: 579,77 | H210: 1.73
B211: COMPOSICAO | C211: 92960 | D211: MÁQUINA EXTRUSORA DE CONCRETO PARA GUIAS E SARJETAS, MOTOR A DIESEL, POTÊNCIA 14 CV | E211: CHP | F211: 0,0180000 | G211: 19,48 | H211: 0.35
B212: COMPOSICAO | C212: 92961 | D212: MÁQUINA EXTRUSORA DE CONCRETO PARA GUIAS E SARJETAS, MOTOR A DIESEL, POTÊNCIA 14 CV | E212: CHI | F212: 0,0910000 | G212: 5,89 | H212: 0.53
B214: PRODUÇÃO DA EQUIPE | E214: 1 | F214: CUSTO | H214: =SUM(H205:H213) -> 57.4
B215: TOTAL | H215: =H214/E214 -> 57.4 | I215: OK
B216: BDI % | H216: =1+$M$1 -> 1.2127
B217: TOTAL DO SERVIÇO - R$ | H217: =H215*H216 -> 69.60898
A219: 14 | B219: CODEVASF | E219: COMPOSIÇÃO DE PREÇO UNITÁRIO | I219: =H233 -> 393.92 | J219: =H235 -> 477.706784
B220: OBRA: | C220: =$C$2 -> PAVIMENTAÇÃO EM BLOQUETE - DISTRITO DE SÃO PEDRO DO PASSA TRÊS - BURITIS/MG | G220: DATA: | H220: =$H$2 -> JULHO/2023
B221: SERVIÇO: | C221: =VLOOKUP(A219,ORÇAMENTO!$A$10:$I$29,3) -> FORNECIMENTO E INSTALAÇÃO DE PLACA DE SINALIZAÇÃO VIÁRIA - REGULAMENTAÇÃO 0,60MX0,60M, SUPORTE INCLUSO | E221: SINAPI | F221: =VLOOKUP(A219,ORÇAMENTO!$A$10:$I$29,4) -> CPU.4 | G221: UNIDADE: | H221: =VLOOKUP(A219,ORÇAMENTO!$A$10:$I$29,5) -> UNID.
B223: TIPO ITEM | C223: CODIGO ITEM | D223: DESCRIÇÃO ITEM | E223: UNIDADE ITEM | F223: COEFICIENTE | G223: PRECO UNITARIO | H223: CUSTO TOTAL
B224: COMPOSICAO | C224: 94962 | D224: CONCRETO MAGRO PARA LASTRO, TRAÇO 1:4,5:4,5 (EM MASSA SECA DE CIMENTO/ AREIA MÉDIA/ BRITA 1) | E224: M3 | F224: 0.024 | G224: 389.21 | H224: =ROUNDDOWN(F224*G224,2) -> 9.34
B225: COMPOSICAO | C225: 93358 | D225: ESCAVAÇÃO MANUAL DE VALA COM PROFUNDIDADE MENOR OU IGUAL A 1,30 M | E225: M3 | F225: 0.024 | G225: 78.17 | H225: 1.87
B226: COMPOSICAO | C226: 88309 | D226: PEDREIRO COM ENCARGOS COMPLEMENTARES | E226: H | F226: 0.2 | G226: 27.45 | H226: 5.49
B227: COMPOSICAO | C227: 88316 | D227: SERVENTE COM ENCARGOS COMPLEMENTARES | E227: H | F227: 1 | G227: 19.76 | H227: 19.76
B228: COMPOSICAO | C228: 103670 | D228: LANÇAMENTO COM USO DE BALDES, ADENSAMENTO E ACABAMENTO DE CONCRETO EM ESTRUTURAS | E228: M3 | F228: 0.024 | G228: 281.78 | H228: 6.76
B229: INSUMO | C229: 34723 | D229: PLACA DE SINALIZACAO EM CHAPA DE ACO NUM 16 COM PINTURA REFLETIVA (CIRCULAR - D=50CM) | E229: M2 | F229: 0.2 | G229: 577.5 | H229: 115.5
B230: INSUMO | C230: 21013 | D230: TUBO AÇO GALVANIZADO COM COSTURA, CLASSE LEVE, DN 50 MM ( 2")E = 3,00 MM, *4,40* KG/M (NBR 5580) | E230: M | F230: 3 | G230: 78.4 | H230: 235.2
B232: PRODUÇÃO DA EQUIPE | E232: 1 | F232: CUSTO | H232: =SUM(H224:H231) -> 393.92
... 19 more rows

Sheet BDI SERV
B1: DETALHAMENTO DO BDI - SERVIÇOS
B4: Item | C4: Descrição dos Serviços | D4: % | E4: %
D5: PV | E5: CD
B7: 1 | C7: ADMINISTRAÇÃO CENTRAL | E7: 4.01
B8: 1.1 | C8: ESCRITÓRIO CENTRAL
B9: 1.2 | C9: VIAGENS
B10: 1.3 | C10: OUTROS
B12: 2 | C12: IMPOSTOS E TAXAS | D12: =SUM(D13:D15) -> 5.65 | E12: =SUM(E13:E15) -> 7.06
B13: 2.1 | C13: ISS (*) | D13: =5*0.4 -> 2 | E13: =ROUND(D13*1.2515,2) -> 2.5
B14: 2.2 | C14: PIS | D14: 0.65 | E14: =ROUND(D14*1.2515,2) -> 0.81
B15: 2.3 | C15: Cofins | D15: 3 | E15: =ROUND(D15*1.2515,2) -> 3.75
B17: 3 | C17: TAXA DE RISCO | E17: =SUM(E18:E21) -> 0.96
B18: 3.1 | C18: SEGURO | E18: 0.2
B19: 3.2 | C19: RISCO | E19: 0.56
B20: 3.3 | C20: GARANTIA | E20: 0.2
B22: 4 | C22: DESPESAS FINANCEIRAS | E22: 1.11
B24: 5 | C24: LUCRO | E24: 7.8
C26: BDI - CALCULADO | E26: =ROUND((((1+(E7+E17)/100)*(1+E22/100)*(1+E24/100)/(1-D12/100)-1)*100),2) -> 21.27
A28: BDI = ((1+((AC+S+R+G)/100))x(1+DF/100)x(1+L/100)/(1-I/100)-1)*100
B30: BDI (CALCULADO): | D30: =ROUND((((1+((E7+E17)/100))*(1+E22/100)*(1+E24/100))/(1-D12/100)-1)*100,2) -> 21.27 | E30: %
A32: (*) ISS CONFORME LEI COMPLEMENTAR Nº 006/2003 E LEI COMPLEMENTAR Nº 59/2009 QUE ALTEROU A ALÍQUOTA PARA ITENS 7 A 7.05 (ART. 9º ) - QUANT. ESTIMADA DE MATERIAIS = 60%
A36: BDI EM CONFORMIDADE COM OS ACÓRDÃOS Nº 2369/2011 e ACÓRDÃO Nº 2.622/2013 - TCU - PLENÁRIO

Sheet CRONOGRAMA
B1: CRONOGRAMA FÍSICO-FINANCEIRO
B2: OBRA: | C2: =ORÇAMENTO!C5 -> PAVIMENTAÇÃO EM BLOQUETE - DISTRITO DE SÃO PEDRO DO PASSA TRÊS - BURITIS/MG | F2: VALOR: | G2: =ORÇAMENTO!I29 -> 382050.43
F3: PRAZO: | G3: 90 DIAS
B5: ITEM | C5: ETAPAS/DESCRIÇAO | D5: FISICO/ FINANCEIRO | E5: TOTAL ETAPAS | F5: MÊS 1 | G5: MÊS 2 | H5: MÊS 3 | I5: TOTAL
A6: A | B6: =VLOOKUP(A6,ORÇAMENTO!$A$9:$I$29,2) -> 1 | C6: =VLOOKUP(A6,ORÇAMENTO!$A$9:$I$29,3) -> SERVIÇOS PRELIMINARES | D6: FISICO | E6: =ROUND(E7/$G$2,4) -> 0.1108 | F6: 0.4 | G6: 0.3 | H6: 0.3 | I6: =SUM(F6:H6) -> 1
D7: FINANCEIRO | E7: =ORÇAMENTO!I9 -> 42330.54 | F7: =ROUND($E$7*F6,2) -> 16932.22 | G7: =ROUND($E$7*G6,2) -> 12699.16 | H7: =ROUND($E$7*H6,2) -> 12699.16 | I7: 42330.54
A8: B | B8: =VLOOKUP(A8,ORÇAMENTO!$A$9:$I$29,2) -> 2 | C8: =VLOOKUP(A8,ORÇAMENTO!$A$9:$I$29,3) -> PAVIMENTAÇÃO | D8: FISICO | E8: =ROUND(E9/$G$2,4) -> 0.682 | F8: 0.3 | G8: 0.4 | H8: 0.3 | I8: 1
D9: FINANCEIRO | E9: =ORÇAMENTO!I15 -> 260567.64 | F9: =ROUND($E$9*F8,2) -> 78170.29 | G9: =ROUND($E$9*G8,2) -> 104227.06 | H9: =ROUND($E$9*H8,2) -> 78170.29 | I9: 260567.64
A10: C | B10: =VLOOKUP(A10,ORÇAMENTO!$A$9:$I$29,2) -> 3 | C10: =VLOOKUP(A10,ORÇAMENTO!$A$9:$I$29,3) -> TRANSPORTE DE MATERIAIS | D10: FISICO | E10: =ROUND(E11/$G$2,4) -> 0.0841 | F10: 0.5 | G10: 0.5 | I10: 1
D11: FINANCEIRO | E11: =ORÇAMENTO!I21 -> 32119.57 | F11: =ROUND($E$11*F10,2) -> 16059.79 | G11: =ROUND($E$11*G10,2) -> 16059.79 | H11: =ROUND($E$11*H10,2) -> 0 | I11: 32119.58
A12: D | B12: =VLOOKUP(A12,ORÇAMENTO!$A$9:$I$29,2) -> 4 | C12: =VLOOKUP(A12,ORÇAMENTO!$A$9:$I$29,3) -> DRENAGEM E OBRAS COMPLEMENTARES | D12: FISICO | E12: =ROUND(E13/$G$2,4) -> 0.1231 | G12: 0.5 | H12: 0.5 | I12: 1
D13: FINANCEIRO | E13: =ORÇAMENTO!I24 -> 47032.68 | F13: =ROUND($E$13*F12,2) -> 0 | G13: =ROUND($E$13*G12,2) -> 23516.34 | H13: =ROUND($E$13*H12,2) -> 23516.34 | I13: =SUM(F13:H13)-0.01 -> 47032.67
B14: TOTAL | D14: FISICO | E14: =SUM(F14:H14) -> 1 | F14: =F15/E15 -> 0.2909623737 | G14: =G15/$E$15 -> 0.4096379371 | H14: =H15/$E$15 -> 0.2993996892 | I14: 1
D15: FINANCEIRO | E15: =E11+E9+E7+E13 -> 382050.43 | F15: =F11+F9+F7+F13 -> 111162.3 | G15: =G11+G9+G7+G13 -> 156502.35 | H15: =H11+H9+H7+H13-0.01 -> 114385.78 | I15: =ROUNDUP(SUM(F15:H15),2) -> 382050.43
B17: OBSERVAÇÕES:
